fUST/lending_fUST_20240521
["ID","MTS","AMOUNT","RATE_DAILY","PERIOD"]
[327596610,1716247848072,-151.0,0.00015,2]
[327596612,1716247848081,-1578.034194,0.00015,2]
[327596614,1716247848090,-1578.034194,0.00015,2]
[327596616,1716247848099,-1578.034194,0.00015,2]
[327596618,1716247848109,-151.0,0.00015,2]
[327596620,1716247848119,-1578.034194,0.00015,2]
[327596622,1716247848129,-151.0,0.00015,2]
[327596624,1716247848138,-151.0,0.00015,2]
[327596626,1716247848147,-151.0,0.00015,2]
[327596628,1716247848157,-151.0,0.00015,2]
[327596630,1716247848166,-152.675554,0.00015,2]
[327596632,1716247848177,-173.197987,0.00015,2]
[327596634,1716247848186,-252.731558,0.00015,2]
[327596636,1716247848195,-252.731558,0.00015,2]
[327596638,1716247848205,-252.731558,0.00015,2]
[327596640,1716247848214,-252.731558,0.00015,2]
[327596642,1716247848223,-166.185138,0.00015,2]
[327596644,1716247848232,-166.185138,0.00015,2]
[327596646,1716247848241,-166.185138,0.00015,2]
[327596648,1716247848250,-166.185138,0.00015,2]
[327596650,1716247848259,-151.0,0.00015,2]
[327596652,1716247848269,-151.0,0.00015,2]
[327596654,1716247848278,-151.0,0.00015,2]
[327596656,1716247848287,-151.0,0.00015,2]
[327596657,1716247848295,-151.0,0.00015,2]
[327596659,1716247848305,-151.0,0.00015,2]
[327596661,1716247848314,-151.0,0.00015,2]
[327596663,1716247848324,-205.721013,0.00015,2]
[327596665,1716247848333,-287.354677,0.00015,2]
[327596667,1716247848342,-287.354677,0.00015,2]
[327596669,1716247848351,-287.354677,0.00015,2]
[327596671,1716247848360,-287.354677,0.00015,2]
[327596673,1716247848369,-151.0,0.00015,2]
[327596675,1716247848378,-151.0,0.00015,2]
[327596677,1716247848387,-287.354677,0.00015,2]
[327596679,1716247848396,-151.0,0.00015,2]
[327596681,1716247848405,-287.354677,0.00015,2]
[327596683,1716247848415,-287.354677,0.00015,2]
[327596685,1716247848425,-287.354677,0.00015,2]
[327596687,1716247848434,-156.077206,0.00015,2]
[327596689,1716247848444,-274.24725433,0.000165,2]
[327596691,1716247848453,-10603.04409996,0.00017898,2]
[327596693,1716247848462,-252.731558,0.00017898,2]
[327596695,1716247848471,-252.731558,0.00017898,2]
[327596697,1716247848480,-166.185138,0.00017898,2]
[327596699,1716247848490,-166.185138,0.00017898,2]
[327596701,1716247848499,-151.0,0.00017898,2]
[327596703,1716247848508,-183.774709,0.00017898,2]
[327596705,1716247848517,-10898.09635368,0.00018,2]
[327596707,1716247848527,-6050.53947353,0.00018,7]
[327596709,1716247848537,-151.0,0.00018,2]
[327596711,1716247848547,-151.0,0.00018,2]
[327596713,1716247848556,-159.590138,0.00018,2]
[327596715,1716247848565,-151.0,0.00018,2]
[327596716,1716247848575,-249.929555,0.00018,2]
[327596718,1716247848585,-249.929555,0.00018,2]
[327596720,1716247848594,-227.89342,0.00018,2]
[327596722,1716247848603,-227.89342,0.00018,2]
[327596724,1716247848613,-151.0,0.00018,2]
[327596726,1716247848623,-288.081074,0.00018,2]
[327596728,1716247848632,-158.540201,0.00018,2]
[327596730,1716247848642,-288.081074,0.00018,2]
[327596732,1716247848651,-158.540201,0.00018,2]
[327596734,1716247848661,-1581.600665,0.00018,2]
[327596736,1716247848671,-1581.600665,0.00018,2]
[327596738,1716247848687,-1598.660785,0.00018,2]
[327596740,1716247848697,-1598.660785,0.00018,2]
[327596742,1716247848706,-151.0,0.00018,2]
[327596744,1716247848715,-151.0,0.00018,2]
[327596746,1716247848727,-151.0,0.00018,2]
[327596748,1716247848736,-1578.034194,0.00018,2]
[327596750,1716247848745,-151.0,0.00018,2]
[327596752,1716247848754,-1578.034194,0.00018,2]
[327596754,1716247848764,-151.0,0.00018,2]
[327596756,1716247848775,-287.354677,0.00018,2]
[327596758,1716247848784,-151.0,0.00018,2]
[327596759,1716247848793,-287.354677,0.00018,2]
[327596761,1716247848802,-1741.29111718,0.000189,2]
[327596763,1716247848812,-264.74615518,0.00018944,2]
[327596765,1716247848821,-513.4844886,0.00018944,2]
[327596767,1716247848830,-1095.21612986,0.00018944,2]
[327596769,1716247848839,-172.61112556,0.00018944,2]
[327596771,1716247848849,-252.731558,0.00018944,2]
[327596773,1716247848858,-252.731558,0.00018944,2]
[327596775,1716247848867,-166.185138,0.00018944,2]
[327596777,1716247848876,-166.185138,0.00018944,2]
[327596779,1716247848886,-151.0,0.00018944,2]
[327596781,1716247848896,-236.44282804,0.00018945,2]
[327596783,1716247848906,-221.9141656,0.00018945,2]
[327596785,1716247848915,-158.51974322,0.00019178,2]
[327596786,1716247848926,-500.0,0.00019178,2]
[327596788,1716247848935,-500.0,0.00019178,2]
[327596791,1716247848945,-596.71287326,0.00019178,2]
[327596793,1716247848954,-398.26062409,0.00019178,2]
[327596794,1716247848964,-500.0,0.00019178,2]
[327596796,1716247848975,-500.0,0.00019178,2]
[327596798,1716247848984,-500.0,0.00019178,2]
[327596799,1716247848993,-358.11891942,0.00019178,2]
[327596800,1716247849002,-233.27350616,0.00019178,2]
[327596801,1716247849011,-371.22395623,0.00019178,2]
[327596802,1716247849021,-500.0,0.00019178,2]
[327596803,1716247849030,-500.0,0.00019178,2]
[327596804,1716247849039,-500.0,0.00019178,2]
[327596805,1716247849049,-500.0,0.00019178,2]
[327596806,1716247849059,-519.07664598,0.00019178,2]
[327596807,1716247849068,-500.0,0.00019178,2]
[327596808,1716247849079,-500.0,0.00019178,2]
[327596809,1716247849089,-500.0,0.00019178,2]
[327596810,1716247849098,-500.0,0.00019178,2]
[327596811,1716247849108,-500.0,0.00019178,2]
[327596812,1716247849118,-500.0,0.00019178,2]
[327596813,1716247849128,-415.62844052,0.00019178,2]
[327596814,1716247849138,-500.0,0.00019178,2]
[327596815,1716247849147,-500.0,0.00019178,2]
[327596816,1716247849156,-500.0,0.00019178,2]
[327596817,1716247849166,-500.0,0.00019178,2]
[327596818,1716247849178,-500.0,0.00019178,2]
[327596819,1716247849187,-373.38169552,0.00019178,2]
[327596820,1716247849197,-500.0,0.00019178,2]
[327596821,1716247849206,-500.0,0.00019178,2]
[327596822,1716247849216,-500.0,0.00019178,2]
[327596823,1716247849226,-500.0,0.00019178,2]
[327596824,1716247849235,-500.0,0.00019178,2]
[327596825,1716247849245,-500.0,0.00019178,2]
[327596826,1716247849254,-500.0,0.00019178,2]
[327596827,1716247849263,-500.0,0.00019178,2]
[327596828,1716247849273,-500.0,0.00019178,2]
[327596829,1716247849283,-314.26007406,0.00019178,2]
[327596830,1716247849292,-121.18766411,0.00019178,2]
[327596831,1716247849545,-378.81233589,0.00019178,2]
[327596832,1716247849556,-30.80903202,0.00019178,2]
[327596833,1716247849588,-469.19096798,0.00019178,2]
[327596834,1716247849598,-500.0,0.00019178,2]
[327596835,1716247849608,-500.0,0.00019178,2]
[327596836,1716247849618,-500.0,0.00019178,2]
[327596837,1716247849627,-500.0,0.00019178,2]
[327596838,1716247849756,-500.0,0.00019178,2]
[327596839,1716247849766,-500.0,0.00019178,2]
[327596840,1716247849777,-500.0,0.00019178,2]
[327596841,1716247849787,-500.0,0.00019178,2]
[327596842,1716247849797,-500.0,0.00019178,2]
[327596843,1716247849806,-500.00000001,0.00019178,2]
[327596844,1716247849816,-200.0,0.00019178,2]
[327596845,1716247849826,-500.0,0.00019178,2]
[327596846,1716247849835,-500.0,0.00019178,2]
[327596847,1716247849845,-500.0,0.00019178,2]
[327596849,1716247849854,-200.0,0.00019178,2]
[327596851,1716247849863,-180.0,0.00019178,2]
[327596853,1716247849873,-403.34536221,0.00019178,2]
[327596855,1716247849883,-500.0,0.00019178,2]
[327596857,1716247849892,-200.0,0.00019178,2]
[327596859,1716247849902,-500.0,0.00019178,2]
[327596861,1716247849911,-500.0,0.00019178,2]
[327596863,1716247849920,-500.0,0.00019178,2]
[327596865,1716247849930,-500.0,0.00019178,2]
[327596867,1716247849940,-250.0,0.00019178,2]
[327596869,1716247849949,-417.25209737,0.00019178,2]
[327596871,1716247849959,-500.0,0.00019178,2]
[327596873,1716247849968,-500.0,0.00019178,2]
[327596875,1716247849980,-500.0,0.00019178,2]
[327596877,1716247849989,-407.13833423,0.00019178,2]
[327596879,1716247849999,-500.0,0.00019178,2]
[327596881,1716247850008,-500.0,0.00019178,2]
[327596883,1716247850018,-500.0,0.00019178,2]
[327596885,1716247850027,-500.0,0.00019178,2]
[327596887,1716247850037,-450.0,0.00019178,2]
[327596889,1716247850047,-500.0,0.00019178,2]
[327596891,1716247850057,-500.0,0.00019178,2]
[327596893,1716247850066,-500.0,0.00019178,2]
[327596895,1716247850077,-600.0,0.00019178,2]
[327596897,1716247850090,-500.0,0.00019178,2]
[327596899,1716247850099,-500.0,0.00019178,2]
[327596901,1716247850110,-500.0,0.00019178,2]
[327596903,1716247850119,-600.0,0.00019178,2]
[327596905,1716247850130,-500.0,0.00019178,2]
[327596907,1716247850140,-550.0,0.00019178,2]
[327596909,1716247850150,-500.0,0.00019178,2]
[327596911,1716247850159,-427.26475948,0.00019178,2]
[327596913,1716247850168,-500.0,0.00019178,2]
[327596915,1716247850178,-500.0,0.00019178,2]
[327596917,1716247850187,-455.51296036,0.00019178,2]
[327596919,1716247850196,-500.0,0.00019178,2]
[327596921,1716247850205,-200.0,0.00019178,2]
[327596923,1716247850214,-500.0,0.00019178,2]
[327596925,1716247850223,-500.0,0.00019178,2]
[327596927,1716247850233,-520.225,0.00019178,2]
[327596929,1716247850242,-500.0,0.00019178,2]
[327596931,1716247850251,-159.469878,0.00019178,2]
[327596933,1716247850261,-175.004244,0.00019178,2]
[327596935,1716247850270,-175.004244,0.00019178,2]
[327596937,1716247850279,-175.004244,0.00019178,2]
[327596939,1716247850288,-175.004244,0.00019178,2]
[327596941,1716247850297,-151.0,0.00019178,2]
[327596943,1716247850306,-151.0,0.00019178,2]
[327596945,1716247850315,-151.0,0.00019178,2]
[327596947,1716247850323,-151.0,0.00019178,2]
[327596949,1716247850333,-151.0,0.00019178,2]
[327596951,1716247850342,-840.593638,0.00019178,2]
[327596953,1716247850351,-840.593638,0.00019178,2]
[327596955,1716247850360,-840.593638,0.00019178,2]
[327596957,1716247850368,-840.593638,0.00019178,2]
[327596959,1716247850377,-114.25045532,0.00019178,2]
[327596961,1716247850390,-36.74954468,0.00019178,2]
[327596963,1716247850400,-151.0,0.00019178,2]
[327596965,1716247850409,-151.0,0.00019178,2]
[327596967,1716247850419,-151.0,0.00019178,2]
[327596969,1716247850431,-151.0,0.00019178,2]
[327596971,1716247850440,-151.0,0.00019178,2]
[327596973,1716247850449,-151.0,0.00019178,2]
[327596975,1716247850458,-151.0,0.00019178,2]
[327596977,1716247850467,-151.0,0.00019178,2]
[327596979,1716247850476,-151.0,0.00019178,2]
[327596981,1716247850484,-151.0,0.00019178,2]
[327596983,1716247850494,-151.0,0.00019178,2]
[327596985,1716247850503,-151.0,0.00019178,2]
[327596987,1716247850513,-151.0,0.00019178,2]
[327596989,1716247850522,-151.0,0.00019178,2]
[327596991,1716247850532,-151.0,0.00019178,2]
[327596993,1716247850541,-249.929555,0.00019178,2]
[327596995,1716247850550,-249.929555,0.00019178,2]
[327596997,1716247850559,-249.929555,0.00019178,2]
[327596999,1716247850568,-249.929555,0.00019178,2]
[327597001,1716247850577,-249.929555,0.00019178,2]
[327597003,1716247850587,-249.929555,0.00019178,2]
[327597005,1716247850596,-227.89342,0.00019178,2]
[327597007,1716247850606,-227.89342,0.00019178,2]
[327597009,1716247850616,-227.89342,0.00019178,2]
[327597011,1716247850626,-227.89342,0.00019178,2]
[327597013,1716247850636,-227.89342,0.00019178,2]
[327597015,1716247850646,-227.89342,0.00019178,2]
[327597017,1716247850655,-151.0,0.00019178,2]
[327597019,1716247850664,-151.0,0.00019178,2]
[327597021,1716247850673,-151.0,0.00019178,2]
[327597023,1716247850692,-288.081074,0.00019178,2]
[327597025,1716247850702,-288.081074,0.00019178,2]
[327597027,1716247850712,-288.081074,0.00019178,2]
[327597029,1716247850723,-158.540201,0.00019178,2]
[327597031,1716247850732,-158.540201,0.00019178,2]
[327597033,1716247850742,-158.540201,0.00019178,2]
[327597035,1716247850751,-288.081074,0.00019178,2]
[327597037,1716247850763,-288.081074,0.00019178,2]
[327597039,1716247850773,-288.081074,0.00019178,2]
[327597041,1716247850782,-158.540201,0.00019178,2]
[327597043,1716247850791,-158.540201,0.00019178,2]
[327597045,1716247850800,-158.540201,0.00019178,2]
[327597047,1716247850809,-1581.600665,0.00019178,2]
[327597049,1716247850819,-1581.600665,0.00019178,2]
[327597051,1716247850829,-1581.600665,0.00019178,2]
[327597053,1716247850838,-1581.600665,0.00019178,2]
[327597055,1716247850847,-1581.600665,0.00019178,2]
[327597057,1716247850857,-1581.600665,0.00019178,2]
[327597059,1716247850866,-1598.660785,0.00019178,2]
[327597061,1716247850875,-1598.660785,0.00019178,2]
[327597063,1716247850884,-1598.660785,0.00019178,2]
[327597065,1716247850893,-1598.660785,0.00019178,2]
[327597067,1716247850902,-1598.660785,0.00019178,2]
[327597069,1716247850912,-1598.660785,0.00019178,2]
[327597071,1716247850921,-151.0,0.00019178,2]
[327597073,1716247850934,-151.0,0.00019178,2]
[327597075,1716247850943,-151.0,0.00019178,2]
[327597077,1716247850952,-195.318458,0.00019178,2]
[327597079,1716247850961,-165.869963,0.00019178,2]
[327597081,1716247850970,-1578.034194,0.00019178,2]
[327597082,1716247850979,-1578.034194,0.00019178,2]
[327597084,1716247850988,-1578.034194,0.00019178,2]
[327597087,1716247850999,-151.0,0.00019178,2]
[327597089,1716247851009,-151.0,0.00019178,2]
[327597091,1716247851018,-1578.034194,0.00019178,2]
[327597092,1716247851027,-151.0,0.00019178,2]
[327597094,1716247851036,-1578.034194,0.00019178,2]
[327597096,1716247851046,-1578.034194,0.00019178,2]
[327597098,1716247851055,-151.0,0.00019178,2]
[327597100,1716247851065,-151.0,0.00019178,2]
[327597102,1716247851075,-181.168545,0.00019178,2]
[327597104,1716247851085,-252.731558,0.00019178,2]
[327597106,1716247851095,-252.731558,0.00019178,2]
[327597108,1716247851104,-252.731558,0.00019178,2]
[327597111,1716247851115,-252.731558,0.00019178,2]
[327597112,1716247851124,-252.731558,0.00019178,2]
[327597114,1716247851134,-252.731558,0.00019178,2]
[327597116,1716247851143,-166.185138,0.00019178,2]
[327597118,1716247851153,-166.185138,0.00019178,2]
[327597120,1716247851163,-166.185138,0.00019178,2]
[327597122,1716247851173,-166.185138,0.00019178,2]
[327597124,1716247851184,-166.185138,0.00019178,2]
[327597127,1716247851193,-166.185138,0.00019178,2]
[327597128,1716247851203,-151.0,0.00019178,2]
[327597131,1716247851212,-151.0,0.00019178,2]
[327597133,1716247851222,-151.0,0.00019178,2]
[327597135,1716247851232,-287.354677,0.00019178,2]
[327597137,1716247851241,-287.354677,0.00019178,2]
[327597139,1716247851251,-287.354677,0.00019178,2]
[327597141,1716247851260,-176.698328,0.00019178,2]
[327597142,1716247851270,-287.354677,0.00019178,2]
[327597144,1716247851280,-287.354677,0.00019178,2]
[327597147,1716247851289,-287.354677,0.00019178,2]
[327597148,1716247851299,-164.735554,0.00019178,2]
[327597150,1716247851309,-178.210557,0.00019178,2]
[327597152,1716247851319,-434.37726,0.00019178,2]
[327597154,1716247851329,-434.37726,0.00019178,2]
[327597156,1716247851338,-434.37726,0.00019178,2]
[327597158,1716247851347,-434.37726,0.00019178,2]
[327597160,1716247851356,-161.676935,0.00019178,2]
[327597162,1716247851365,-240.40188331,0.0002,2]
[327597164,1716247851375,-4692.31037495,0.0002,2]
[327597166,1716247851384,-1565.51900701,0.0002,2]
[327597168,1716247851393,-7413.7136393,0.0002,2]
[327597170,1716247851402,-18932.81446658,0.0002,2]
[327597172,1716247851412,-241.21190449,0.0002,2]
[327597174,1716247851421,-175.004244,0.0002,2]
[327597176,1716247851433,-175.004244,0.0002,2]
[327597178,1716247851442,-175.004244,0.0002,2]
[327597180,1716247851451,-175.004244,0.0002,2]
[327597182,1716247851460,-434.37726,0.0002,2]
[327597184,1716247851469,-434.37726,0.0002,2]
[327597186,1716247851478,-434.37726,0.0002,2]
[327597188,1716247851487,-434.37726,0.0002,2]
[327597190,1716247851496,-151.0,0.0002,2]
[327597192,1716247851505,-151.0,0.0002,2]
[327597194,1716247851515,-151.487814,0.0002,2]
[327597196,1716247851524,-840.593638,0.0002,2]
[327597198,1716247851533,-840.593638,0.0002,2]
[327597200,1716247851542,-840.593638,0.0002,2]
[327597202,1716247851551,-840.593638,0.0002,2]
[327597204,1716247851560,-151.0,0.0002,2]
[327597206,1716247851570,-151.0,0.0002,2]
[327597208,1716247851579,-151.0,0.0002,2]
[327597210,1716247851589,-151.0,0.0002,2]
[327597212,1716247851598,-151.0,0.0002,2]
[327597214,1716247851608,-151.0,0.0002,2]
[327597215,1716247851618,-151.0,0.0002,2]
[327597218,1716247851629,-151.0,0.0002,2]
[327597220,1716247851639,-151.0,0.0002,2]
[327597230,1716247851741,-151.0,0.0002,2]
[327597232,1716247851752,-249.929555,0.0002,2]
[327597234,1716247851762,-249.929555,0.0002,2]
[327597236,1716247851775,-249.929555,0.0002,2]
[327597238,1716247851788,-249.929555,0.0002,2]
[327597240,1716247851798,-227.89342,0.0002,2]
[327597242,1716247851807,-227.89342,0.0002,2]
[327597244,1716247851818,-227.89342,0.0002,2]
[327597246,1716247851827,-227.89342,0.0002,2]
[327597248,1716247851836,-151.0,0.0002,2]
[327597250,1716247851845,-200.0,0.0002,2]
[327597252,1716247851855,-288.081074,0.0002,2]
[327597254,1716247851864,-288.081074,0.0002,2]
[327597255,1716247851873,-158.540201,0.0002,2]
[327597256,1716247851882,-158.540201,0.0002,2]
[327597257,1716247851891,-288.081074,0.0002,2]
[327597258,1716247851900,-288.081074,0.0002,2]
[327597259,1716247851909,-158.540201,0.0002,2]
[327597260,1716247851918,-158.540201,0.0002,2]
[327597261,1716247851929,-1581.600665,0.0002,2]
[327597262,1716247851940,-1581.600665,0.0002,2]
[327597263,1716247851949,-1581.600665,0.0002,2]
[327597264,1716247851958,-1581.600665,0.0002,2]
[327597265,1716247851968,-1598.660785,0.0002,2]
[327597266,1716247851977,-1598.660785,0.0002,2]
[327597267,1716247851986,-1598.660785,0.0002,2]
[327597268,1716247851996,-1598.660785,0.0002,2]
[327597269,1716247852005,-151.0,0.0002,2]
[327597270,1716247852014,-151.0,0.0002,2]
[327597271,1716247852023,-1578.034194,0.0002,2]
[327597272,1716247852033,-1578.034194,0.0002,2]
[327597273,1716247852042,-151.0,0.0002,2]
[327597274,1716247852052,-151.0,0.0002,2]
[327597275,1716247852060,-1578.034194,0.0002,2]
[327597276,1716247852070,-1578.034194,0.0002,2]
[327597277,1716247852079,-252.731558,0.0002,2]
[327597278,1716247852088,-252.731558,0.0002,2]
[327597279,1716247852097,-252.731558,0.0002,2]
[327597280,1716247852107,-252.731566,0.0002,2]
[327597281,1716247852116,-166.185138,0.0002,2]
[327597282,1716247852126,-166.185138,0.0002,2]
[327597283,1716247852135,-166.185138,0.0002,2]
[327597284,1716247852144,-166.185146,0.0002,2]
[327597285,1716247852154,-151.0,0.0002,2]
[327597286,1716247852163,-151.0,0.0002,2]
[327597287,1716247852173,-287.354677,0.0002,2]
[327597288,1716247852185,-287.354677,0.0002,2]
[327597289,1716247852195,-287.354677,0.0002,2]
[327597290,1716247852204,-287.354682,0.0002,2]
[327597291,1716247852213,-395.05371636,0.0002022,10]
[327597292,1716247852222,-615.935296,0.00020548,2]
[327597293,1716247852232,-288.2,0.00020892,3]
[327597294,1716247852241,-150.0,0.00020892,3]
[327597295,1716247852250,-840.593638,0.00020909,2]
[327597296,1716247852259,-840.593638,0.00020909,2]
[327597297,1716247852269,-261.15058514,0.00020911,2]
[327597298,1716247852279,-400.0,0.00020911,2]
[327597299,1716247852288,-684.75161522,0.00020912,2]
[327597300,1716247852298,-306.09705841,0.0002175,2]
[327597301,1716247852308,-175.004244,0.0002175,2]
[327597302,1716247852317,-175.004244,0.0002175,2]
[327597303,1716247852328,-434.37726,0.0002175,2]
[327597304,1716247852338,-434.37726,0.0002175,2]
[327597305,1716247852349,-151.0,0.0002175,2]
[327597306,1716247852358,-151.0,0.00021918,2]
[327597307,1716247852368,-151.0,0.00021918,2]
[327597308,1716247852379,-151.0,0.00021918,2]
[327597309,1716247852388,-151.0,0.00021918,2]
[327597311,1716247852397,-151.0,0.00021918,2]
[327597313,1716247852407,-151.0,0.00021918,2]
[327597315,1716247852416,-151.0,0.00021918,2]
[327597317,1716247852425,-151.0,0.00021918,2]
[327597319,1716247852437,-151.0,0.00021918,2]
[327597321,1716247852446,-175.91965,0.00021918,2]
[327597323,1716247852455,-166.666666,0.00021918,2]
[327597325,1716247852464,-250.760645,0.00021918,2]
[327597327,1716247852474,-455.0,0.00021918,10]
[327597329,1716247852483,-159.70333977,0.00022,2]
[327597331,1716247852492,-166.666666,0.00022431,2]
[327597333,1716247852502,-166.666666,0.00022944,2]
[327597335,1716247852511,-288.2,0.00023028,3]
[327597337,1716247852520,-150.0,0.00023028,3]
[327597339,1716247852529,-166.666666,0.00023456,2]
[327597340,1716247852539,-1741.29111718,0.000239,2]
[327597342,1716247852548,-166.666666,0.00023969,2]
[327597344,1716247852561,-187.16152448,0.00024,2]
[327597346,1716247852572,-433.452958,0.00024384,2]
[327597349,1716247852581,-166.666666,0.00024482,2]
[327597351,1716247852591,-151.0,0.00024658,2]
[327597353,1716247852600,-151.0,0.00024658,2]
[327597354,1716247852610,-151.0,0.00024658,2]
[327597356,1716247852619,-281.100145,0.00024658,2]
[327597359,1716247852630,-400.71262343,0.00025,2]
[327597360,1716247852639,-167.4232435,0.00025,2]
[327597362,1716247852648,-288.2,0.00025163,5]
[327597364,1716247852658,-150.0,0.00026468,2]
[327597367,1716247852667,-379.09303098,0.000266,2]
[327597369,1716247852679,-986.45755068,0.00027173,2]
[327597371,1716247852688,-288.2,0.00027299,5]
[327597373,1716247852699,-1136.59312053,0.0002739,2]
[327597375,1716247852711,-249.929555,0.0002739,2]
[327597377,1716247852720,-249.929555,0.0002739,2]
[327597379,1716247852730,-1581.600665,0.0002739,2]
[327597381,1716247852739,-1581.60065856,0.0002739,2]
[327597383,1716247852750,-1598.660785,0.0002739,2]
[327597385,1716247852759,-1598.660777,0.0002739,2]
[327597387,1716247852769,-151.0,0.0002739,2]
[327597389,1716247852779,-500.0,0.00027397,2]
[327597391,1716247852790,-500.0,0.00027397,2]
[327597393,1716247852801,-500.0,0.00027397,2]
[327597395,1716247852810,-600.0,0.00027397,2]
[327597397,1716247852820,-500.0,0.00027397,2]
[327597399,1716247852830,-500.0,0.00027397,2]
[327597401,1716247852840,-502.31769462,0.00027397,2]
[327597403,1716247852849,-500.0,0.00027397,2]
[327597405,1716247852859,-175.004244,0.00027397,2]
[327597407,1716247852868,-175.004244,0.00027397,2]
[327597409,1716247852878,-434.37726,0.00027397,2]
[327597411,1716247852887,-434.37726,0.00027397,2]
[327597413,1716247852896,-296.192928,0.00027397,2]
[327597415,1716247852906,-1248.61,0.00027397,2]
[327597417,1716247852916,-1248.61,0.00027397,2]
[327597419,1716247852925,-1248.61,0.00027397,2]
[327597421,1716247852936,-1248.61,0.00027397,2]
[327597423,1716247852945,-1248.61,0.00027397,2]
[327597425,1716247852954,-1248.61,0.00027397,2]
[327597427,1716247852963,-1248.61,0.00027397,2]
[327597429,1716247852972,-840.593638,0.00027397,2]
[327597431,1716247852982,-840.593638,0.00027397,2]
[327597433,1716247852991,-151.0,0.00027397,2]
[327597435,1716247853001,-151.0,0.00027397,2]
[327597437,1716247853009,-151.0,0.00027397,2]
[327597439,1716247853019,-151.0,0.00027397,2]
[327597441,1716247853029,-249.929555,0.00027397,2]
[327597444,1716247853038,-249.929555,0.00027397,2]
[327597445,1716247853047,-227.89342,0.00027397,2]
[327597447,1716247853058,-227.89342,0.00027397,2]
[327597450,1716247853067,-227.89342,0.00027397,2]
[327597452,1716247853076,-227.893416,0.00027397,2]
[327597454,1716247853085,-288.081074,0.00027397,2]
[327597456,1716247853095,-288.081074,0.00027397,2]
[327597458,1716247853104,-158.540201,0.00027397,2]
[327597460,1716247853113,-158.540201,0.00027397,2]
[327597462,1716247853122,-288.081074,0.00027397,2]
[327597464,1716247853132,-288.08107547,0.00027397,2]
[327597466,1716247853141,-158.540201,0.00027397,2]
[327597467,1716247853149,-158.540203,0.00027397,2]
[327597470,1716247853159,-1578.034194,0.00027397,2]
[327597471,1716247853168,-151.0,0.00027397,2]
[327597473,1716247853177,-1578.034185,0.00027397,2]
[327597475,1716247853186,-151.0,0.00027397,2]
[327597477,1716247853196,-151.0,0.00027397,2]
[327597479,1716247853205,-151.0,0.00027397,2]
[327597481,1716247853214,-901.313015,0.00027397,2]
[327597483,1716247853224,-901.313015,0.00027397,2]
[327597485,1716247853233,-901.313015,0.00027397,2]
[327597488,1716247853242,-901.313015,0.00027397,2]
[327597489,1716247853252,-901.313015,0.00027397,2]
[327597492,1716247853262,-901.313015,0.00027397,2]
[327597494,1716247853271,-901.313015,0.00027397,2]
[327597496,1716247853285,-901.313015,0.00027397,2]
[327597498,1716247853299,-901.313015,0.00027397,2]
[327597500,1716247853308,-901.313015,0.00027397,2]
[327597502,1716247853317,-901.313015,0.00027397,2]
[327597504,1716247853326,-901.313015,0.00027397,2]
[327597506,1716247853335,-901.313015,0.00027397,2]
[327597508,1716247853345,-901.313015,0.00027397,2]